bitfinex-derivatives/quotes_BTCF0:USTF0_20250106
["timestamp","ask_amount","ask_price","bid_price","bid_amount"]
[1736200216779,0.82069271,101870.0,101850.0,0.11985952]
[1736200216979,0.409865,101860.0,101850.0,0.11985952]
[1736200218076,0.409865,101860.0,101850.0,0.12085952]
[1736200218275,0.409865,101860.0,101850.0,0.12385952]
[1736200218977,0.409865,101860.0,101850.0,0.15569337]
[1736200219178,0.515065,101860.0,101850.0,0.15569337]
[1736200220973,0.409865,101860.0,101850.0,0.15569337]
[1736200222477,0.3608,101860.0,101850.0,0.24820701]
[1736200222678,0.86421392,101870.0,101850.0,0.29727601]
[1736200222983,0.718361,101870.0,101860.0,0.09251364]
[1736200223882,0.718361,101870.0,101860.0,0.14157764]
[1736200224176,0.613161,101870.0,101860.0,0.14157764]
[1736200224880,0.613161,101870.0,101860.0,0.09251364]
[1736200225073,0.049064,101860.0,101850.0,0.44635504]
[1736200225276,0.409864,101860.0,101850.0,0.44635504]
[1736200226884,0.409864,101860.0,101850.0,0.44535504]
[1736200227382,0.409864,101860.0,101850.0,0.33086376]
[1736200227694,0.409864,101860.0,101850.0,0.33186376]
[1736200228273,0.049064,101860.0,101850.0,0.33186376]
[1736200228580,0.409864,101860.0,101850.0,0.33186376]
[1736200229083,0.409864,101860.0,101850.0,0.15569137]
[1736200234987,0.409864,101860.0,101850.0,0.44935504]
[1736200236483,0.409864,101860.0,101850.0,0.76069731]
[1736200236984,0.409864,101860.0,101850.0,0.71162931]
[1736200237494,0.86317764,101860.0,101850.0,0.60900594]
[1736200237790,0.770664,101860.0,101850.0,0.60900594]
[1736200239189,1.03301754,101860.0,101850.0,0.18034913]
[1736200241494,1.12553118,101860.0,101850.0,0.18034913]
[1736200243988,1.03782747,101860.0,101850.0,0.18034913]
[1736200244194,1.03782747,101860.0,101850.0,0.004]
[1736200247999,1.18324898,101860.0,101850.0,0.004]
[1736200251102,1.21219038,101860.0,101850.0,0.004]
[1736200251901,1.03754055,101860.0,101850.0,0.004]
[1736200255806,0.049074,101840.0,101830.0,0.34449046]
[1736200255996,0.409874,101840.0,101830.0,0.34449046]
[1736200256193,0.47060152,101840.0,101830.0,0.18616294]
[1736200256692,0.47060152,101840.0,101830.0,0.17634913]
[1736200256896,0.89212904,101840.0,101830.0,0.06801813]
[1736200257107,0.89212904,101840.0,101830.0,0.07701813]
[1736200258110,0.89212904,101840.0,101830.0,0.013]
[1736200258994,0.86325739,101840.0,101830.0,0.013]
[1736200259200,0.86325739,101840.0,101830.0,1e-06]
[1736200260605,1.01878614,101840.0,101830.0,1e-06]
[1736200260906,0.92620275,101840.0,101830.0,1e-06]
[1736200277918,0.95543107,101840.0,101830.0,1e-06]
[1736200281111,1.01619351,101840.0,101830.0,1e-06]
[1736200283117,1.01619351,101840.0,101820.0,0.007021]
[1736200283319,0.049084,101820.0,101810.0,0.35028212]
[1736200283505,0.47064644,101820.0,101810.0,0.35028212]
[1736200285018,0.58716538,101820.0,101810.0,0.35428212]
[1736200286316,0.58816538,101820.0,101810.0,0.56718212]
[1736200287727,0.61729512,101820.0,101810.0,0.56718212]
[1736200290717,0.73387544,101820.0,101810.0,0.56718212]
[1736200293627,1.09467544,101820.0,101810.0,0.56718212]
[1736200293831,1.15543788,101820.0,101810.0,0.45953112]
[1736200294622,1.03885756,101820.0,101810.0,0.45953112]
[1736200295734,1.03885756,101820.0,101810.0,0.22448992]
[1736200296732,1.04863103,101820.0,101810.0,0.22448992]
[1736200297233,1.04863103,101820.0,101810.0,0.01308992]
[1736200297830,0.92710615,101820.0,101810.0,0.01308992]
[1736200298128,1.04863103,101820.0,101810.0,0.01308992]
[1736200298325,1.22328086,101820.0,101810.0,0.01308992]
[1736200299635,0.50168086,101820.0,101810.0,0.01308992]
[1736200299835,1.22328086,101820.0,101810.0,0.01308992]
[1736200302237,1.16251842,101820.0,101810.0,0.01308992]
[1736200302749,1.22328086,101820.0,101810.0,0.01308992]
[1736200303437,1.22328086,101820.0,101810.0,9.2e-07]
[1736200303938,1.2840433,101820.0,101810.0,9.2e-07]
[1736200304238,1.22328086,101820.0,101810.0,9.2e-07]
[1736200304433,1.2840433,101820.0,101810.0,9.2e-07]
[1736200304634,1.22328086,101820.0,101800.0,0.11746412]
[1736200304836,0.78812488,101810.0,101800.0,0.11746412]
[1736200305037,0.77651917,101810.0,101800.0,0.11746412]
[1736200305240,0.77652536,101810.0,101800.0,0.11746412]
[1736200305427,0.77645044,101810.0,101800.0,0.11746412]
[1736200305633,0.77645044,101810.0,101790.0,0.1003]
[1736200305828,0.47065544,101800.0,101790.0,0.1003]
[1736200306134,0.47074536,101800.0,101790.0,0.1003]
[1736200306840,0.61618533,101800.0,101790.0,0.1033]
[1736200307034,0.55542289,101800.0,101790.0,0.16406244]
[1736200307238,0.22561597,101810.0,101800.0,0.049093]
[1736200307536,0.049084,101820.0,101810.0,0.049088]
[1736200307834,0.049084,101820.0,101810.0,0.53141288]
[1736200308539,0.049084,101820.0,101810.0,1.13264571]
[1736200309039,0.049084,101820.0,101810.0,1.10367004]
[1736200309739,0.052084,101820.0,101810.0,1.5639918]
[1736200310333,0.054084,101820.0,101810.0,1.5639918]
[1736200310837,0.005,101820.0,101810.0,1.6897918]
[1736200311039,0.049081,101830.0,101810.0,1.6897918]
[1736200311337,0.049081,101830.0,101820.0,0.14163321]
[1736200311536,0.049081,101830.0,101820.0,0.23418242]
[1736200311733,0.49717411,101840.0,101830.0,0.049079]
[1736200311937,0.49717411,101840.0,101830.0,0.34612821]
[1736200312341,0.409875,101840.0,101830.0,0.34612821]
[1736200312635,0.049075,101840.0,101830.0,0.34612821]
[1736200312837,0.049075,101840.0,101830.0,0.34712821]
[1736200314141,0.049075,101840.0,101830.0,0.94823209]
[1736200315632,0.049075,101840.0,101830.0,0.64066293]
[1736200316942,0.049075,101840.0,101830.0,0.34712821]
[1736200319940,0.049075,101840.0,101830.0,0.35730996]
[1736200320431,0.409875,101840.0,101830.0,0.10373096]
[1736200322434,0.409875,101840.0,101830.0,0.15280996]
[1736200322932,0.508575,101840.0,101830.0,0.15280996]
[1736200326343,0.614875,101840.0,101830.0,0.15280996]
[1736200329044,0.614875,101840.0,101830.0,0.12098937]
[1736200335144,0.67560362,101840.0,101830.0,0.01118175]
[1736200335449,0.049084,101820.0,101810.0,0.29353472]
[1736200335651,0.770684,101820.0,101810.0,0.35426334]
[1736200335849,0.871984,101820.0,101810.0,0.35426334]
[1736200337048,0.871984,101820.0,101810.0,0.38612029]
[1736200337256,0.871984,101820.0,101810.0,0.38712029]
[1736200338357,0.95928311,101820.0,101810.0,0.09358557]
[1736200338548,1.06118311,101820.0,101810.0,0.01094883]
[1736200340558,0.973884,101820.0,101810.0,0.01094883]
[1736200342846,0.252284,101820.0,101810.0,0.01094883]
[1736200343046,0.973884,101820.0,101810.0,0.01094883]
[1736200345965,0.973884,101820.0,101810.0,0.1035344]
[1736200347663,0.973884,101820.0,101810.0,0.01094883]
[1736200348560,0.973884,101820.0,101810.0,0.001]
[1736200353162,1.06118311,101820.0,101810.0,0.001]
[1736200354568,1.15376868,101820.0,101810.0,0.001]
[1736200354765,0.049088,101810.0,101790.0,0.29353472]
[1736200355066,0.409893,101800.0,101790.0,0.38612029]
[1736200355858,0.409893,101800.0,101790.0,0.39012029]
[1736200356267,0.409893,101800.0,101790.0,0.39812029]
[1736200356467,0.409893,101800.0,101790.0,0.10458557]
[1736200356858,0.410893,101800.0,101790.0,0.10458557]
[1736200357765,0.410893,101800.0,101790.0,0.11471222]
[1736200358067,0.510893,101800.0,101790.0,0.11471222]
[1736200359164,0.510893,101800.0,101790.0,0.08289971]
[1736200362458,0.510893,101800.0,101790.0,0.72166693]
[1736200362865,0.36358226,101800.0,101790.0,0.72166693]
[1736200363862,0.41267526,101800.0,101790.0,0.72166693]
[1736200364966,0.52117526,101800.0,101790.0,0.72166693]
[1736200366667,0.60847437,101800.0,101790.0,1.07407685]
[1736200367572,0.24767437,101800.0,101790.0,1.07407685]
[1736200367774,0.96927437,101800.0,101790.0,1.07407685]
[1736200371666,0.96927437,101800.0,101790.0,1.01330379]
[1736200371870,1.09082049,101800.0,101790.0,1.00317714]
[1736200372870,1.09082049,101800.0,101790.0,0.67377714]
[1736200373372,1.09082049,101800.0,101790.0,0.67977714]
[1736200373776,1.32300631,101800.0,101790.0,0.006]
[1736200374072,1.32300631,101800.0,101780.0,0.23533246]
[1736200374073,0.049098,101790.0,101780.0,0.23533246]
[1736200374267,0.63054412,101790.0,101780.0,0.23533246]
[1736200374572,0.56977106,101790.0,101780.0,0.23533246]
[1736200375265,0.71525546,101790.0,101770.0,0.0099695]
[1736200375465,0.71525546,101790.0,101760.0,0.39432252]
[1736200375466,0.47067606,101780.0,101760.0,0.39432252]
[1736200375666,0.409908,101770.0,101760.0,0.34521352]
[1736200376273,0.409908,101770.0,101760.0,0.40598658]
[1736200376468,0.409908,101770.0,101760.0,0.50718658]
[1736200376968,0.410908,101770.0,101760.0,0.51789221]
[1736200377173,0.411908,101770.0,101760.0,0.51789221]
[1736200377977,0.411908,101770.0,101760.0,0.28255975]
[1736200381073,0.411908,101770.0,101760.0,0.51743247]
[1736200384963,0.411908,101770.0,101760.0,0.46832447]
[1736200385168,0.411908,101770.0,101760.0,0.40755141]
[1736200385369,0.411908,101770.0,101760.0,0.46832447]
[1736200392672,0.411908,101770.0,101760.0,0.40755141]
[1736200392879,0.411908,101770.0,101760.0,0.46832447]
[1736200393381,0.411908,101770.0,101760.0,0.51743747]
[1736200394177,0.411908,101770.0,101760.0,0.84666779]
[1736200394974,0.411908,101770.0,101760.0,0.74546779]
[1736200395176,0.411908,101770.0,101760.0,0.63558173]
[1736200395370,0.515308,101770.0,101760.0,0.63558173]
[1736200396982,0.515308,101770.0,101760.0,0.40070901]
[1736200397177,0.515308,101770.0,101760.0,0.33993595]
[1736200397370,0.515308,101770.0,101760.0,0.40070901]
[1736200399276,0.515308,101770.0,101760.0,0.40470901]
[1736200399682,0.57608106,101770.0,101760.0,0.57914609]
[1736200399986,0.67838106,101770.0,101760.0,0.56944046]
[1736200401384,0.67838106,101770.0,101760.0,0.41674781]
[1736200401385,0.88179285,101770.0,101760.0,0.41674781]
[1736200401573,0.82101979,101770.0,101760.0,0.41674781]
[1736200401775,0.88179285,101770.0,101760.0,0.41674781]
[1736200403472,0.94010077,101770.0,101760.0,0.41674781]
[1736200405186,0.79461637,101770.0,101760.0,0.41674781]
[1736200406386,0.79461637,101770.0,101760.0,0.18153767]
[1736200409686,1.15541637,101770.0,101760.0,0.18153767]
[1736200412583,1.18466546,101770.0,101760.0,0.005]
[1736200415188,1.23277546,101770.0,101760.0,0.001]
[1736200415388,1.23177546,101770.0,101760.0,0.001]
[1736200425796,1.1710024,101770.0,101760.0,0.001]
[1736200425991,1.23177546,101770.0,101760.0,0.001]
[1736200426298,1.02607546,101770.0,101760.0,0.001]
[1736200429798,1.13537546,101770.0,101760.0,0.001]
[1736200431401,1.13537546,101770.0,101760.0,0.17753767]
[1736200434201,1.30937599,101770.0,101760.0,0.17753767]
[1736200438605,1.16389159,101770.0,101760.0,0.17753767]
[1736200439812,1.10311853,101770.0,101760.0,0.17753767]
[1736200440000,1.16389159,101770.0,101760.0,0.17753767]
[1736200441410,1.27339159,101770.0,101760.0,0.17753767]
[1736200441611,1.245078,101770.0,101760.0,0.41274781]
[1736200449117,1.27339159,101770.0,101760.0,0.41274781]
[1736200450314,1.27339159,101770.0,101760.0,0.17753767]
[1736200481134,1.10311853,101770.0,101760.0,0.23831073]
[1736200481437,1.16389159,101770.0,101760.0,0.23831073]
[1736200481833,1.16389159,101770.0,101760.0,0.17753767]
[1736200482032,1.16389159,101770.0,101760.0,0.41274781]
[1736200485037,1.16389159,101770.0,101760.0,0.17753767]
[1736200490543,1.16389159,101770.0,101760.0,0.06106267]
[1736200491646,0.99381853,101770.0,101760.0,0.12183573]
[1736200492145,0.99381853,101770.0,101760.0,0.06106267]
[1736200492739,0.99381853,101770.0,101760.0,0.12183573]
[1736200492936,0.96552252,101770.0,101760.0,0.2959832]
[1736200493737,0.03141252,101770.0,101760.0,0.68544232]
[1736200493946,0.22310353,101780.0,101760.0,1.83047732]
[1736200494244,0.22310353,101780.0,101770.0,0.17065412]
[1736200494637,0.16563187,101780.0,101770.0,0.17065412]
[1736200495040,0.52643187,101780.0,101770.0,0.17065412]
[1736200495246,0.16563187,101780.0,101770.0,0.17065412]
[1736200495939,0.409903,101780.0,101770.0,1.14122311]
[1736200496442,0.411903,101780.0,101770.0,1.14122311]
[1736200496942,0.411903,101780.0,101770.0,1.18405005]
[1736200497150,0.411903,101780.0,101770.0,1.13494205]
[1736200497338,0.411903,101780.0,101770.0,0.97056899]
[1736200497534,0.411903,101780.0,101770.0,0.9139729]
[1736200498942,0.49927939,101780.0,101770.0,0.06077306]
[1736200500950,0.86007939,101780.0,101770.0,0.06077306]
[1736200501643,0.86007939,101780.0,101770.0,0.07083386]
[1736200503155,0.86007939,101780.0,101770.0,0.0100608]
[1736200503452,0.86007939,101780.0,101770.0,0.06077306]
[1736200505457,0.13847939,101780.0,101770.0,0.06077306]
[1736200505855,0.86007939,101780.0,101770.0,0.06077306]
[1736200508257,0.049108,101770.0,101760.0,0.9478141]
[1736200508556,0.049108,101770.0,101760.0,7.7e-07]
[1736200508557,0.47068106,101770.0,101760.0,7.7e-07]
[1736200508748,0.47068106,101770.0,101750.0,0.64676178]
[1736200508749,0.049113,101760.0,101750.0,0.64676178]
[1736200509058,0.513613,101760.0,101750.0,0.64676178]
[1736200509244,0.513613,101760.0,101750.0,0.7683079]
[1736200509445,0.513613,101760.0,101750.0,0.70753484]
[1736200510258,0.63114187,101760.0,101750.0,0.06077306]
[1736200511451,0.63214187,101760.0,101750.0,0.06077306]
[1736200511653,0.71928297,101760.0,101750.0,0.06077306]
[1736200513152,0.71928297,101760.0,101750.0,0.09269165]
[1736200514661,0.6027541,101760.0,101750.0,0.09269165]
[1736200514858,0.049117,101750.0,101740.0,0.10235513]
[1736200515061,0.515017,101750.0,101740.0,0.10235513]
[1736200515459,0.618517,101750.0,101740.0,0.10235513]
[1736200516760,0.618517,101750.0,101740.0,0.10335513]
[1736200517359,0.618517,101750.0,101740.0,0.01066348]
[1736200517560,0.618517,101750.0,101740.0,0.10335513]
[1736200518061,0.979317,101750.0,101740.0,0.10335513]
[1736200518562,0.257717,101750.0,101740.0,0.10335513]
[1736200518751,0.979317,101750.0,101740.0,0.10335513]
[1736200519155,0.979317,101750.0,101740.0,0.001]
[1736200520864,1.0664581,101750.0,101740.0,0.001]
[1736200534378,1.18298697,101750.0,101740.0,0.001]
[1736200534973,1.18298697,101750.0,101740.0,0.06184829]
[1736200537064,1.09584587,101750.0,101740.0,0.06184829]
[1736200537671,0.43509416,101750.0,101740.0,0.06184829]
[1736200537870,1.15669416,101750.0,101740.0,0.06184829]
[1736200538173,1.09584587,101750.0,101740.0,0.06184829]
[1736200538564,1.15669416,101750.0,101740.0,0.06184829]
[1736200538774,1.15669416,101750.0,101740.0,0.001]
[1736200540072,1.1852012,101750.0,101740.0,0.001]
[1736200546075,1.35920173,101750.0,101740.0,0.001]
[1736200549769,1.42005002,101750.0,101730.0,0.29442265]
[1736200549969,0.64021858,101740.0,101730.0,0.29442265]
[1736200550168,0.64021858,101740.0,101730.0,7.079e-05]
[1736200550387,0.57937029,101740.0,101730.0,7.079e-05]
[1736200551071,0.58037029,101740.0,101730.0,7.079e-05]
[1736200551271,0.58037029,101740.0,101730.0,0.00107079]
[1736200552170,0.72597188,101740.0,101730.0,0.00107079]
[1736200555385,0.73559386,101740.0,101730.0,0.00107079]
[1736200555578,0.79644215,101740.0,101730.0,0.00107079]
[1736200556282,0.85729044,101740.0,101720.0,0.29435186]
[1736200556472,0.63592358,101730.0,101720.0,0.29435186]
[1736200556775,0.57507529,101730.0,101720.0,0.29435186]
[1736200556984,0.049132,101720.0,101710.0,0.29435186]
[1736200557278,0.57948029,101720.0,101710.0,0.29435186]
[1736200558374,0.57948029,101720.0,101700.0,0.66370015]
[1736200558375,0.7829624,101720.0,101700.0,0.66370015]
[1736200558575,0.41000779,101710.0,101700.0,0.66370015]
[1736200558776,0.41000779,101710.0,101700.0,0.67333296]
[1736200559975,0.41000779,101710.0,101700.0,0.9922389]
[1736200560678,0.41100779,101710.0,101700.0,0.9922389]
[1736200560885,0.41100779,101710.0,101700.0,0.3789811]
[1736200562078,0.41100779,101710.0,101700.0,0.2761811]
[1736200563780,0.41100779,101710.0,101700.0,0.21533281]
[1736200563987,0.41100779,101710.0,101700.0,0.2761811]
[1736200565287,0.47185608,101710.0,101700.0,0.2761811]
[1736200567487,0.47185608,101710.0,101700.0,0.21533281]
[1736200567785,0.47185608,101710.0,101700.0,0.2761811]
[1736200567986,0.47185608,101710.0,101700.0,0.1704811]
[1736200571386,0.47185608,101710.0,101700.0,0.10963281]
[1736200572089,0.5590627,101710.0,101700.0,0.10963281]
[1736200578892,0.5590627,101710.0,101700.0,0.1]
[1736200579391,0.67533819,101710.0,101700.0,0.1]
[1736200583213,0.58813157,101710.0,101700.0,0.1]
[1736200583611,0.58813157,101710.0,101700.0,0.16084829]
[1736200584308,0.58813157,101710.0,101700.0,0.1]
[1736200587619,0.61720045,101710.0,101700.0,0.1]
[1736200588917,0.67797795,101710.0,101700.0,0.1]
[1736200590004,0.67697795,101710.0,101700.0,0.1]
[1736200590218,0.63112966,101710.0,101700.0,0.1]
[1736200590918,0.63120045,101710.0,101700.0,0.1]
[1736200591112,0.65985661,101710.0,101700.0,0.1]
[1736200591416,0.65378582,101710.0,101700.0,0.1]
[1736200591616,0.65978582,101710.0,101700.0,0.1]
[1736200597524,0.65985661,101710.0,101700.0,0.1]
[1736200598028,0.65978582,101710.0,101700.0,0.1]
[1736200603833,0.80524627,101710.0,101700.0,0.1]
[1736200604233,0.86609456,101710.0,101700.0,0.1]
[1736200604431,0.80524627,101710.0,101700.0,0.1]
[1736200606321,0.29898582,101710.0,101700.0,0.1]
[1736200606527,1.02058582,101710.0,101700.0,0.1]
[1736200606732,1.08143411,101710.0,101700.0,0.1]
[1736200606929,1.08143411,101710.0,101700.0,1e-06]
[1736200611235,0.049151,101690.0,101680.0,2.8e-07]
[1736200611431,0.409951,101690.0,101680.0,2.8e-07]
[1736200611636,0.53164758,101690.0,101680.0,2.8e-07]
[1736200612135,0.409951,101690.0,101680.0,2.8e-07]
[1736200612328,0.47079929,101690.0,101680.0,2.8e-07]
[1736200612636,0.049156,101680.0,101670.0,0.0002]
[1736200612826,0.47087508,101680.0,101670.0,0.0002]
[1736200613227,0.53165258,101680.0,101650.0,0.30438284]
[1736200613435,0.83161429,101660.0,101650.0,0.30438284]
[1736200613627,0.83161429,101660.0,101650.0,0.36523113]
[1736200613831,0.770766,101660.0,101650.0,0.36523113]
[1736200614233,0.91883661,101660.0,101650.0,0.07087927]
[1736200614433,0.85798832,101660.0,101650.0,0.07087927]
[1736200614630,0.91883661,101660.0,101650.0,0.01003098]
[1736200614833,0.91883661,101660.0,101650.0,0.07087927]
[1736200615033,0.91983661,101660.0,101650.0,0.01003098]
[1736200615431,0.9199074,101660.0,101650.0,0.01003098]
[1736200615643,0.9199074,101660.0,101650.0,0.1865139]
[1736200617137,0.9199074,101660.0,101650.0,0.01003098]
[1736200617338,0.85905911,101660.0,101650.0,0.01003098]
[1736200617531,0.85905911,101660.0,101650.0,0.07087927]
[1736200617934,0.9199074,101660.0,101650.0,0.07087927]
[1736200618130,0.9199074,101660.0,101650.0,0.01003098]
[1736200618531,0.83268508,101660.0,101650.0,0.01003098]
[1736200619335,0.83268508,101660.0,101650.0,0.07087927]
[1736200620136,0.77183679,101660.0,101650.0,0.07087927]
[1736200625041,0.77183679,101660.0,101650.0,0.12005027]
[1736200627146,0.77183679,101660.0,101650.0,0.29653319]
[1736200631048,0.77183679,101660.0,101650.0,0.2356849]
[1736200631340,0.77183679,101660.0,101650.0,0.29653319]
[1736200636849,0.85905911,101660.0,101650.0,0.12005027]
[1736200641246,0.88813322,101660.0,101650.0,0.72223626]
[1736200641940,0.52733322,101660.0,101650.0,0.72223626]
[1736200643742,0.61469166,101660.0,101650.0,0.72223626]
[1736200648351,0.61469166,101660.0,101650.0,0.66138797]
[1736200648552,0.61469166,101660.0,101650.0,0.72223626]
[1736200651153,0.67553995,101660.0,101650.0,0.66138797]
[1736200651358,0.67553995,101660.0,101650.0,0.61221697]
[1736200652156,0.58818151,101660.0,101650.0,0.61221697]
[1736200653445,0.6490298,101660.0,101650.0,0.60229405]
[1736200653647,0.64895901,101660.0,101650.0,0.60218599]
[1736200653846,1.0706073,101660.0,101650.0,0.13359099]
[1736200654052,0.88806243,101660.0,101650.0,0.13359099]
[1736200654250,1.00975901,101660.0,101650.0,0.13359099]
[1736200655159,1.00975901,101660.0,101640.0,0.2895]
[1736200655160,0.049171,101650.0,101640.0,0.2895]
[1736200655457,0.47081929,101650.0,101640.0,0.2895]
[1736200655660,0.53166758,101650.0,101640.0,0.2895]
[1736200656758,0.70606128,101650.0,101640.0,0.2895]
[1736200657267,0.70706128,101650.0,101640.0,0.2895]
[1736200657567,0.70806128,101650.0,101640.0,0.2895]
[1736200658367,0.53366758,101650.0,101640.0,0.2895]
[1736200658557,0.53366758,101650.0,101640.0,0.08290542]
[1736200659659,0.53366758,101650.0,101620.0,0.10243788]
[1736200659861,0.42164829,101630.0,101620.0,0.10243788]
[1736200660264,0.47089908,101630.0,101620.0,0.04158959]
[1736200661257,0.47089908,101630.0,101620.0,0.03370114]
[1736200661465,0.47189908,101630.0,101620.0,0.03370114]
[1736200661666,0.5879641,101630.0,101610.0,0.049188]
[1736200661866,0.06084829,101620.0,101610.0,0.049188]
[1736200662168,0.11010408,101620.0,101610.0,0.049188]
[1736200663361,0.11110408,101620.0,101610.0,0.049188]
[1736200663675,0.47290408,101620.0,101610.0,0.049188]
[1736200663861,0.11210408,101620.0,101610.0,0.049188]
[1736200664062,0.47290408,101620.0,101610.0,0.049188]
[1736200664262,0.11210408,101620.0,101610.0,0.049188]
[1736200664464,0.47290408,101620.0,101610.0,0.049188]
[1736200664666,0.20670408,101620.0,101610.0,0.049188]
[1736200664966,0.75559831,101620.0,101610.0,0.049188]
[1736200665462,0.49539831,101620.0,101610.0,0.049188]
[1736200665956,0.85619831,101620.0,101610.0,0.049188]
[1736200666156,0.49539831,101620.0,101610.0,0.11003629]
[1736200666355,0.85619831,101620.0,101610.0,0.11003629]
[1736200666567,0.76920408,101620.0,101610.0,0.11003629]
[1736200666964,0.40840408,101620.0,101610.0,0.11003629]
[1736200668871,0.76920408,101620.0,101610.0,0.11003629]
[1736200669367,0.40840408,101620.0,101610.0,0.11003629]
[1736200671466,0.29837079,101620.0,101610.0,0.11003629]
[1736200671664,0.19727079,101620.0,101610.0,0.11003629]
[1736200672467,0.19727079,101620.0,101610.0,0.47083629]
[1736200673573,0.00207079,101620.0,101610.0,0.47083629]
[1736200673763,0.00207079,101620.0,101610.0,0.65703629]
[1736200677580,0.05125579,101620.0,101610.0,0.65703629]
[1736200680889,0.11210408,101620.0,101610.0,0.47083629]
[1736200681079,0.30920408,101620.0,101610.0,0.47083629]
[1736200681884,0.39619831,101620.0,101610.0,0.47083629]
[1736200682184,0.04919,101610.0,101600.0,0.99025981]
[1736200682581,0.04919,101610.0,101600.0,0.92941152]
[1736200682783,0.04919,101610.0,101600.0,0.99025981]
[1736200683382,0.13618423,101610.0,101600.0,0.81351565]
[1736200684788,0.25224925,101610.0,101600.0,1.3687738]
[1736200687794,0.25224925,101610.0,101600.0,1.0079738]
[1736200687985,0.25224925,101610.0,101600.0,1.3687738]
[1736200689391,0.25724925,101610.0,101600.0,1.3687738]
[1736200689890,0.62104925,101610.0,101600.0,1.0079738]
[1736200690790,0.53405502,101610.0,101600.0,1.0079738]
[1736200692997,0.56307128,101610.0,101600.0,0.62965574]
[1736200694394,0.56307128,101610.0,101600.0,0.39486072]
[1736200694591,0.62391957,101610.0,101600.0,0.33401243]
[1736200695192,0.62391957,101610.0,101600.0,0.39486072]
[1736200696184,0.26311957,101610.0,101600.0,0.39486072]
[1736200696690,0.26311957,101610.0,101600.0,0.39485872]
[1736200697196,0.26311957,101610.0,101600.0,0.33401043]
[1736200697400,0.62391957,101610.0,101600.0,0.33401043]
[1736200697894,0.15308128,101610.0,101600.0,0.45570701]
[1736200698099,0.15308128,101610.0,101600.0,0.81650701]
[1736200698294,0.15308128,101610.0,101600.0,0.88630701]
[1736200699900,0.09538065,101610.0,101600.0,1.26451701]
[1736200701004,0.11657832,101620.0,101610.0,0.049186]
[1736200701194,0.11657832,101620.0,101610.0,0.47083429]
[1736200702802,0.12457832,101620.0,101610.0,0.70650634]
[1736200703294,0.12857832,101620.0,101610.0,0.70650634]
[1736200703902,0.12457832,101620.0,101610.0,0.70650634]
[1736200704103,0.12557832,101620.0,101610.0,0.70650634]
[1736200704995,0.31687832,101620.0,101610.0,0.70650634]
[1736200705600,0.31687832,101620.0,101610.0,0.64565805]
[1736200705799,0.30887832,101620.0,101610.0,0.70650634]
[1736200705998,0.30987832,101620.0,101610.0,0.70650634]
[1736200706601,0.35905932,101620.0,101610.0,0.70650634]
[1736200707102,0.35905932,101620.0,101610.0,0.88323201]
[1736200709803,0.35905932,101620.0,101610.0,0.52243201]
[1736200710219,0.35905932,101620.0,101610.0,0.88323201]
[1736200710402,0.35905932,101620.0,101610.0,0.82238372]
[1736200710604,0.35905932,101620.0,101610.0,0.88323201]
[1736200713210,0.35905932,101620.0,101610.0,0.52243201]
[1736200713710,0.35905932,101620.0,101610.0,0.88323201]
[1736200716305,0.35905932,101620.0,101610.0,0.82238372]
[1736200716511,0.35905932,101620.0,101610.0,0.88323201]
[1736200718211,0.35905932,101620.0,101610.0,0.52243201]
[1736200718706,0.35905932,101620.0,101610.0,0.88323201]
[1736200718907,0.35905932,101620.0,101610.0,0.52243201]
[1736200719211,0.35905932,101620.0,101610.0,0.88323201]
[1736200719402,0.35905932,101620.0,101610.0,0.52243201]
[1736200720011,0.35905932,101620.0,101610.0,0.88323201]
[1736200720416,0.35905932,101620.0,101610.0,0.52243201]
[1736200721017,0.35905932,101620.0,101610.0,0.88323201]
[1736200721205,0.35905932,101620.0,101610.0,0.52243201]
[1736200721405,0.35905932,101620.0,101610.0,0.88323201]
[1736200721611,0.35905932,101620.0,101610.0,0.52243201]
[1736200722314,0.35905932,101620.0,101610.0,0.88323201]
[1736200722515,0.35905932,101620.0,101610.0,0.52243201]
[1736200722917,0.35905932,101620.0,101610.0,0.88323201]
[1736200724417,0.35905932,101620.0,101610.0,0.52243201]
[1736200724621,0.35905932,101620.0,101610.0,0.88323201]
[1736200725017,0.35905932,101620.0,101610.0,0.52243201]
[1736200725516,0.35905932,101620.0,101610.0,0.88323201]
[1736200727026,0.35905932,101620.0,101610.0,0.70650634]
[1736200728528,0.5041406,101620.0,101610.0,0.70650634]
[1736200729727,0.38763307,101620.0,101610.0,1.00133027]
[1736200730631,0.14715207,101620.0,101610.0,1.00133027]
[1736200730924,0.1853,101640.0,101630.0,0.049175]
[1736200731130,0.1853,101640.0,101630.0,0.89247158]
[1736200731337,0.1853,101640.0,101630.0,0.83162329]
[1736200732032,0.234471,101640.0,101630.0,0.53167158]
[1736200732221,0.234471,101640.0,101630.0,0.47082329]
[1736200732422,0.238471,101640.0,101630.0,0.47082329]
[1736200732622,0.246471,101640.0,101630.0,0.47082329]
[1736200732828,0.36309225,101640.0,101630.0,1.00131927]
[1736200733023,0.36309225,101640.0,101630.0,1.28116036]
[1736200734532,0.36309225,101640.0,101630.0,0.88319772]
[1736200736336,0.246471,101640.0,101630.0,0.88319772]
[1736200739941,0.246471,101640.0,101630.0,0.89094308]
[1736200741337,0.246471,101640.0,101630.0,0.65527103]
[1736200745451,0.246471,101640.0,101630.0,0.89094308]
[1736200747251,0.246471,101640.0,101630.0,0.65527103]
[1736200749541,0.246471,101640.0,101630.0,0.29447103]
[1736200749854,0.66811929,101640.0,101630.0,0.18444774]
[1736200750244,0.607271,101640.0,101630.0,0.24529603]
[1736200750448,0.246471,101640.0,101630.0,0.24529603]
[1736200751654,0.36309225,101640.0,101630.0,0.06859365]
[1736200753654,0.72389225,101640.0,101630.0,0.06859365]
[1736200754754,0.36309225,101640.0,101630.0,0.06859365]
[1736200758160,0.36309225,101640.0,101630.0,0.24529603]
[1736200759155,0.246471,101640.0,101630.0,0.24529603]
[1736200760864,0.607271,101640.0,101630.0,0.24529603]
[1736200761362,0.246471,101640.0,101630.0,0.24529603]
[1736200761564,0.607271,101640.0,101630.0,0.24529603]
[1736200762258,0.75315809,101640.0,101630.0,0.24529603]
[1736200762458,0.81400638,101640.0,101630.0,0.24529603]
[1736200763165,0.45320638,101640.0,101630.0,0.24529603]
[1736200763367,0.81400638,101640.0,101630.0,0.24529603]
[1736200763666,0.75315809,101640.0,101630.0,0.24529603]
[1736200764365,0.81400638,101640.0,101630.0,0.18444774]
[1736200767464,0.75315809,101640.0,101630.0,0.18444774]
[1736200767667,0.75315809,101640.0,101630.0,0.24529603]
[1736200770163,0.39235809,101640.0,101630.0,0.29447303]
[1736200770467,0.39235809,101640.0,101630.0,0.65527303]
[1736200771667,0.3632119,101640.0,101630.0,0.7142427]
[1736200772668,0.3632119,101640.0,101630.0,0.75839256]